[Event "Titled Tuesday Blitz July 20 2021"]
[White "Chigaev, Maksim"]
[Black "Peralta, Eduardo"]
[WhiteFideId "4108116"]
[BlackFideId "3700062"]
[WhiteElo "2646"]
[BlackElo "2205"]
[Result "1/2-1/2"]
[Round "04"]
[TimeControl "180+1"]
[Date "2021.07.20"]
[WhiteClock "0:00:09"]
[BlackClock "0:00:16"]

1. d4 {[%clk 0:03:00]}  Nf6 {[%clk 0:02:57]} 2. c4 {[%clk 0:03:00]}  c5 {[%clk 0:02:57]} 3. d5 {[%clk 0:02:59]}  g6 {[%clk 0:02:58]} 4. Nc3 {[%clk 0:02:58]}  d6 {[%clk 0:02:58]} 5. e4 {[%clk 0:02:54]}  Bg7 {[%clk 0:02:59]} 6. h3 {[%clk 0:02:52]}  O-O {[%clk 0:02:54]} 7. Nf3 {[%clk 0:02:52]}  e6 {[%clk 0:02:52]} 8. Bd3 {[%clk 0:02:53]}  exd5 {[%clk 0:02:50]} 9. cxd5 {[%clk 0:02:45]}  b5 {[%clk 0:02:48]} 10. Nxb5 {[%clk 0:02:46]}  Re8 {[%clk 0:02:16]} 11. O-O {[%clk 0:02:45]}  Nxe4 {[%clk 0:02:15]} 12. Re1 {[%clk 0:02:44]}  a6 {[%clk 0:02:15]} 13. Na3 {[%clk 0:02:44]}  Nf6 {[%clk 0:02:10]} 14. Rxe8+ {[%clk 0:02:44]}  Nxe8 {[%clk 0:02:09]} 15. Bg5 {[%clk 0:02:44]}  Bf6 {[%clk 0:02:05]} 16. Qd2 {[%clk 0:02:37]}  Nd7 {[%clk 0:02:01]} 17. Re1 {[%clk 0:02:35]}  Ne5 {[%clk 0:01:58]} 18. Nxe5 {[%clk 0:02:00]}  Bxg5 {[%clk 0:01:58]} 19. f4 {[%clk 0:02:00]}  dxe5 {[%clk 0:01:28]} 20. fxg5 {[%clk 0:02:00]}  Qxd5 {[%clk 0:01:29]} 21. Qc3 {[%clk 0:01:49]}  Bb7 {[%clk 0:01:20]} 22. Be4 {[%clk 0:01:45]}  Qd7 {[%clk 0:01:19]} 23. Bxb7 {[%clk 0:01:42]}  Qxb7 {[%clk 0:01:20]} 24. Nc4 {[%clk 0:01:38]}  Ng7 {[%clk 0:01:08]} 25. Rxe5 {[%clk 0:01:31]}  Rd8 {[%clk 0:01:04]} 26. Ne3 {[%clk 0:01:25]}  Qb4 {[%clk 0:01:01]} 27. Rxc5 {[%clk 0:01:06]}  Qxc3 {[%clk 0:01:01]} 28. Rxc3 {[%clk 0:01:03]}  Ne6 {[%clk 0:01:02]} 29. h4 {[%clk 0:01:03]}  h6 {[%clk 0:00:58]} 30. gxh6 {[%clk 0:01:01]}  Kh7 {[%clk 0:00:57]} 31. Ng4 {[%clk 0:01:00]}  Rd2 {[%clk 0:00:53]} 32. Rb3 {[%clk 0:00:46]}  Rd4 {[%clk 0:00:50]} 33. Ne5 {[%clk 0:00:46]}  Nd8 {[%clk 0:00:46]} 34. Rd3 {[%clk 0:00:44]}  Rxd3 {[%clk 0:00:45]} 35. Nxd3 {[%clk 0:00:45]}  Kxh6 {[%clk 0:00:40]} 36. b4 {[%clk 0:00:46]}  Nc6 {[%clk 0:00:36]} 37. g4 {[%clk 0:00:38]}  g5 {[%clk 0:00:32]} 38. h5 {[%clk 0:00:25]}  f5 {[%clk 0:00:31]} 39. gxf5 {[%clk 0:00:26]}  Kxh5 {[%clk 0:00:32]} 40. a4 {[%clk 0:00:24]}  g4 {[%clk 0:00:25]} 41. b5 {[%clk 0:00:24]}  axb5 {[%clk 0:00:24]} 42. axb5 {[%clk 0:00:24]}  Na5 {[%clk 0:00:21]} 43. b6 {[%clk 0:00:10]}  Kg5 {[%clk 0:00:20]} 44. Ne5 {[%clk 0:00:09]}  Kxf5 {[%clk 0:00:19]} 45. Nxg4 {[%clk 0:00:07]}  Kxg4 {[%clk 0:00:16]} 46. b7 {[%clk 0:00:08]}  Nc6 {[%clk 0:00:15]} 47. b8=Q {[%clk 0:00:09]}  Nxb8 {[%clk 0:00:16]} 1/2-1/2


[Site "https://www.chess.com"]

[Event "Titled Tuesday Blitz July 20 2021"]
[White "Chiu, Isaac"]
[Black "ketster"]
[WhiteFideId "30900654"]
[WhiteElo "2117"]
[BlackElo "2458"]
[Result "1-0"]
[Round "04"]
[TimeControl "180+1"]
[Date "2021.07.21"]
[WhiteClock "0:00:33"]
[BlackClock "0:00:20"]

1. e4 {[%clk 0:03:00]}  e6 {[%clk 0:02:59]} 2. Nc3 {[%clk 0:03:00]}  d5 {[%clk 0:02:58]} 3. Nf3 {[%clk 0:03:01]}  d4 {[%clk 0:02:57]} 4. Ne2 {[%clk 0:02:55]}  c5 {[%clk 0:02:57]} 5. c3 {[%clk 0:02:56]}  Nf6 {[%clk 0:02:50]} 6. e5 {[%clk 0:02:53]}  Nfd7 {[%clk 0:02:50]} 7. cxd4 {[%clk 0:02:53]}  cxd4 {[%clk 0:02:50]} 8. Nexd4 {[%clk 0:02:54]}  Nxe5 {[%clk 0:02:48]} 9. Bb5+ {[%clk 0:02:42]}  Nec6 {[%clk 0:02:43]} 10. O-O {[%clk 0:02:42]}  Bc5 {[%clk 0:02:39]} 11. Nxc6 {[%clk 0:02:40]}  Nxc6 {[%clk 0:02:33]} 12. d4 {[%clk 0:02:39]}  Bb6 {[%clk 0:02:27]} 13. Bg5 {[%clk 0:02:37]}  Qd5 {[%clk 0:02:25]} 14. Qe2 {[%clk 0:02:33]}  O-O {[%clk 0:02:20]} 15. Rfd1 {[%clk 0:02:24]}  Nxd4 {[%clk 0:02:14]} 16. Nxd4 {[%clk 0:02:18]}  Qxg5 {[%clk 0:02:12]} 17. Nf3 {[%clk 0:02:15]}  Qh5 {[%clk 0:02:07]} 18. Bd7 {[%clk 0:02:10]}  Bxd7 {[%clk 0:01:55]} 19. Rxd7 {[%clk 0:02:11]}  Rab8 {[%clk 0:01:55]} 20. Rad1 {[%clk 0:02:09]}  h6 {[%clk 0:01:51]} 21. Qe4 {[%clk 0:02:06]}  Qc5 {[%clk 0:01:43]} 22. Qe2 {[%clk 0:02:02]}  Rbd8 {[%clk 0:01:33]} 23. Ne5 {[%clk 0:02:01]}  Qc8 {[%clk 0:01:11]} 24. R7d3 {[%clk 0:01:09]}  Rxd3 {[%clk 0:01:07]} 25. Rxd3 {[%clk 0:01:10]}  Rd8 {[%clk 0:00:55]} 26. Rc3 {[%clk 0:01:10]}  Qb8 {[%clk 0:00:51]} 27. g3 {[%clk 0:01:02]}  Qd6 {[%clk 0:00:46]} 28. Rd3 {[%clk 0:00:40]}  Qe7 {[%clk 0:00:44]} 29. Rf3 {[%clk 0:00:40]}  f6 {[%clk 0:00:35]} 30. Ng6 {[%clk 0:00:36]}  Qd6 {[%clk 0:00:35]} 31. Kg2 {[%clk 0:00:36]}  e5 {[%clk 0:00:26]} 32. h4 {[%clk 0:00:33]}  Qc6 {[%clk 0:00:20]} 33. Ne7+ {[%clk 0:00:33]} 1-0


[Site "https://www.chess.com"]

[Event "Titled Tuesday Blitz July 20 2021"]
[White "Darini, Pouria"]
[Black "Onyshchuk, Volodymyr"]
[WhiteFideId "12502200"]
[BlackFideId "14114038"]
[WhiteElo "2489"]
[BlackElo "2603"]
[Result "0-1"]
[Round "04"]
[TimeControl "180+1"]
[Date "2021.07.20"]
[WhiteClock "0:00:02"]
[BlackClock "0:00:40"]

1. e4 {[%clk 0:03:00]}  d6 {[%clk 0:02:58]} 2. d4 {[%clk 0:03:00]}  Nf6 {[%clk 0:02:58]} 3. Nc3 {[%clk 0:03:01]}  g6 {[%clk 0:02:59]} 4. Be3 {[%clk 0:03:00]}  c6 {[%clk 0:02:56]} 5. Nf3 {[%clk 0:02:55]}  Nbd7 {[%clk 0:02:55]} 6. Bd3 {[%clk 0:02:53]}  e5 {[%clk 0:02:51]} 7. h3 {[%clk 0:02:45]}  Bg7 {[%clk 0:02:48]} 8. O-O {[%clk 0:02:37]}  O-O {[%clk 0:02:44]} 9. a4 {[%clk 0:02:38]}  h6 {[%clk 0:02:43]} 10. Qd2 {[%clk 0:02:38]}  Kh7 {[%clk 0:02:42]} 11. dxe5 {[%clk 0:02:32]}  dxe5 {[%clk 0:02:42]} 12. Rfd1 {[%clk 0:02:31]}  Qe7 {[%clk 0:02:35]} 13. Ne2 {[%clk 0:02:11]}  a5 {[%clk 0:02:28]} 14. Qc3 {[%clk 0:02:06]}  Re8 {[%clk 0:02:23]} 15. Ng3 {[%clk 0:02:06]}  Bf8 {[%clk 0:02:20]} 16. Bc4 {[%clk 0:01:59]}  Kg7 {[%clk 0:02:15]} 17. Qd2 {[%clk 0:01:43]}  Kh7 {[%clk 0:02:14]} 18. Qc3 {[%clk 0:01:42]}  Bg7 {[%clk 0:02:00]} 19. Qb3 {[%clk 0:01:07]}  Rf8 {[%clk 0:01:51]} 20. Qa3 {[%clk 0:01:00]}  Qxa3 {[%clk 0:01:49]} 21. Rxa3 {[%clk 0:01:01]}  Kg8 {[%clk 0:01:45]} 22. Nh4 {[%clk 0:00:58]}  Kh7 {[%clk 0:01:42]} 23. Rad3 {[%clk 0:00:57]}  h5 {[%clk 0:01:27]} 24. Nf3 {[%clk 0:00:54]}  Bh6 {[%clk 0:01:27]} 25. Ng5+ {[%clk 0:00:43]}  Kg7 {[%clk 0:01:27]} 26. Rd6 {[%clk 0:00:29]}  h4 {[%clk 0:01:16]} 27. Ne2 {[%clk 0:00:15]}  Bxg5 {[%clk 0:01:15]} 28. Bxg5 {[%clk 0:00:15]}  Nxe4 {[%clk 0:01:15]} 29. Rxd7 {[%clk 0:00:04]}  Bxd7 {[%clk 0:01:12]} 30. Be7 {[%clk 0:00:05]}  Bf5 {[%clk 0:01:07]} 31. Bxf8+ {[%clk 0:00:05]}  Kxf8 {[%clk 0:01:04]} 32. c3 {[%clk 0:00:03]}  Ke7 {[%clk 0:01:02]} 33. f4 {[%clk 0:00:03]}  f6 {[%clk 0:00:58]} 34. fxe5 {[%clk 0:00:04]}  fxe5 {[%clk 0:00:58]} 35. Re1 {[%clk 0:00:05]}  Rd8 {[%clk 0:00:56]} 36. Ba2 {[%clk 0:00:04]}  Kf6 {[%clk 0:00:51]} 37. Bb1 {[%clk 0:00:04]}  Nc5 {[%clk 0:00:50]} 38. Bxf5 {[%clk 0:00:04]}  gxf5 {[%clk 0:00:49]} 39. Rf1 {[%clk 0:00:03]}  Nxa4 {[%clk 0:00:47]} 40. b4 {[%clk 0:00:01]}  Rd2 {[%clk 0:00:44]} 41. Re1 {[%clk 0:00:01]}  axb4 {[%clk 0:00:43]} 42. cxb4 {[%clk 0:00:02]}  Nb2 {[%clk 0:00:43]} 43. Nc3 {[%clk 0:00:02]}  Nd3 {[%clk 0:00:42]} 44. Rf1 {[%clk 0:00:03]}  Nf4 {[%clk 0:00:42]} 45. Kh1 {[%clk 0:00:02]}  Ke6 {[%clk 0:00:41]} 46. Re1 {[%clk 0:00:02]}  Nxg2 {[%clk 0:00:40]} 47. Re2 {[%clk 0:00:01]}  Rxe2 {[%clk 0:00:39]} 48. Nxe2 {[%clk 0:00:02]}  Nf4 {[%clk 0:00:40]} 0-1


[Site "https://www.chess.com"]

[Event "Titled Tuesday Blitz July 20 2021"]
[White "De Souza, Cristiano Gomes"]
[Black "Trent, Lawrence"]
[WhiteFideId "2151758"]
[BlackFideId "408638"]
[WhiteElo "2068"]
[BlackElo "2474"]
[Result "0-1"]
[Round "04"]
[TimeControl "180+1"]
[Date "2021.07.21"]
[WhiteClock "0:00:08"]
[BlackClock "0:00:42"]

1. d4 {[%clk 0:03:00]}  c5 {[%clk 0:03:00]} 2. d5 {[%clk 0:02:58]}  f5 {[%clk 0:03:00]} 3. g3 {[%clk 0:02:56]}  g6 {[%clk 0:02:58]} 4. Bg2 {[%clk 0:02:56]}  Bg7 {[%clk 0:02:58]} 5. Nf3 {[%clk 0:02:56]}  Nf6 {[%clk 0:02:58]} 6. O-O {[%clk 0:02:55]}  O-O {[%clk 0:02:59]} 7. c4 {[%clk 0:02:54]}  Ne4 {[%clk 0:02:59]} 8. Qc2 {[%clk 0:02:53]}  Na6 {[%clk 0:02:58]} 9. a3 {[%clk 0:02:52]}  Nc7 {[%clk 0:02:56]} 10. Nfd2 {[%clk 0:02:52]}  Nxd2 {[%clk 0:02:54]} 11. Bxd2 {[%clk 0:02:50]}  d6 {[%clk 0:02:54]} 12. Bc3 {[%clk 0:02:50]}  Be5 {[%clk 0:02:48]} 13. Nd2 {[%clk 0:02:47]}  Ne8 {[%clk 0:02:48]} 14. f4 {[%clk 0:02:46]}  Bf6 {[%clk 0:02:42]} 15. e4 {[%clk 0:02:45]}  Bxc3 {[%clk 0:02:42]} 16. Qxc3 {[%clk 0:02:44]}  fxe4 {[%clk 0:02:41]} 17. Nxe4 {[%clk 0:02:43]}  Nf6 {[%clk 0:02:41]} 18. Nxf6+ {[%clk 0:02:42]}  exf6 {[%clk 0:02:41]} 19. Rfe1 {[%clk 0:02:42]}  Bd7 {[%clk 0:02:40]} 20. Re3 {[%clk 0:02:41]}  Re8 {[%clk 0:02:34]} 21. Rae1 {[%clk 0:02:42]}  Rxe3 {[%clk 0:02:34]} 22. Qxe3 {[%clk 0:02:39]}  Kf7 {[%clk 0:02:31]} 23. Kf2 {[%clk 0:02:39]}  a6 {[%clk 0:02:27]} 24. h4 {[%clk 0:02:35]}  h5 {[%clk 0:02:25]} 25. Be4 {[%clk 0:02:32]}  f5 {[%clk 0:02:25]} 26. Bc2 {[%clk 0:02:30]}  Qf6 {[%clk 0:02:25]} 27. Qc3 {[%clk 0:02:24]}  Qxc3 {[%clk 0:02:21]} 28. bxc3 {[%clk 0:02:24]}  b5 {[%clk 0:02:21]} 29. Bd3 {[%clk 0:02:16]}  Rb8 {[%clk 0:02:13]} 30. Rb1 {[%clk 0:02:13]}  Ke7 {[%clk 0:02:04]} 31. Ke3 {[%clk 0:02:05]}  Kd8 {[%clk 0:02:02]} 32. Kd2 {[%clk 0:02:04]}  Kc7 {[%clk 0:02:02]} 33. Be2 {[%clk 0:01:45]}  Rb7 {[%clk 0:01:37]} 34. Bd3 {[%clk 0:01:39]}  Rb8 {[%clk 0:01:35]} 35. Be2 {[%clk 0:01:35]}  Be8 {[%clk 0:01:17]} 36. Bd3 {[%clk 0:01:33]}  Kd8 {[%clk 0:01:17]} 37. cxb5 {[%clk 0:01:26]}  axb5 {[%clk 0:01:16]} 38. Rb2 {[%clk 0:01:16]}  Kc7 {[%clk 0:01:16]} 39. Rb1 {[%clk 0:00:59]}  c4 {[%clk 0:01:05]} 40. Be2 {[%clk 0:00:50]}  Ra8 {[%clk 0:01:01]} 41. Ra1 {[%clk 0:00:44]}  Kb6 {[%clk 0:01:01]} 42. Bf3 {[%clk 0:00:41]}  Kc5 {[%clk 0:01:01]} 43. Kc2 {[%clk 0:00:21]}  Bf7 {[%clk 0:01:01]} 44. Kb2 {[%clk 0:00:16]}  Bxd5 {[%clk 0:00:55]} 45. Bd1 {[%clk 0:00:16]}  Bc6 {[%clk 0:00:54]} 46. Bc2 {[%clk 0:00:16]}  Re8 {[%clk 0:00:52]} 47. Rd1 {[%clk 0:00:15]}  Re2 {[%clk 0:00:52]} 48. Kc1 {[%clk 0:00:15]}  Rg2 {[%clk 0:00:51]} 49. Re1 {[%clk 0:00:15]}  Rxg3 {[%clk 0:00:51]} 50. Re6 {[%clk 0:00:15]}  Rxc3 {[%clk 0:00:50]} 51. Kb1 {[%clk 0:00:14]}  Rxa3 {[%clk 0:00:48]} 52. Rxg6 {[%clk 0:00:14]}  Be4 {[%clk 0:00:44]} 53. Bxe4 {[%clk 0:00:14]}  fxe4 {[%clk 0:00:45]} 54. Rg5+ {[%clk 0:00:14]}  d5 {[%clk 0:00:45]} 55. Rxh5 {[%clk 0:00:15]}  Rf3 {[%clk 0:00:43]} 56. Rh8 {[%clk 0:00:14]}  Rxf4 {[%clk 0:00:43]} 57. h5 {[%clk 0:00:10]}  Kb4 {[%clk 0:00:43]} 58. h6 {[%clk 0:00:08]}  Kb3 {[%clk 0:00:42]} 0-1


[Site "https://www.chess.com"]

[Event "Titled Tuesday Blitz July 20 2021"]
[White "Derige Kane, Yan"]
[Black "Tarasova, Viktoriya"]
[WhiteFideId "20665431"]
[BlackFideId "4175840"]
[WhiteElo "2169"]
[BlackElo "2182"]
[Result "1-0"]
[Round "04"]
[TimeControl "180+1"]
[Date "2021.07.21"]
[WhiteClock "0:00:11"]
[BlackClock "0:00:14"]

1. d4 {[%clk 0:03:00]}  Nf6 {[%clk 0:02:58]} 2. Bg5 {[%clk 0:03:01]}  e6 {[%clk 0:02:54]} 3. e4 {[%clk 0:02:58]}  Be7 {[%clk 0:02:53]} 4. Bxf6 {[%clk 0:02:46]}  Bxf6 {[%clk 0:02:53]} 5. Nf3 {[%clk 0:02:47]}  d6 {[%clk 0:02:53]} 6. Bd3 {[%clk 0:02:45]}  O-O {[%clk 0:02:51]} 7. h4 {[%clk 0:02:36]}  h6 {[%clk 0:02:49]} 8. g4 {[%clk 0:02:35]}  Be7 {[%clk 0:02:45]} 9. Nbd2 {[%clk 0:02:17]}  e5 {[%clk 0:02:38]} 10. dxe5 {[%clk 0:02:13]}  Bxg4 {[%clk 0:02:35]} 11. exd6 {[%clk 0:02:07]}  Bxd6 {[%clk 0:02:33]} 12. Qe2 {[%clk 0:01:59]}  Nc6 {[%clk 0:02:30]} 13. Qe3 {[%clk 0:01:49]}  Qe7 {[%clk 0:02:22]} 14. Rg1 {[%clk 0:01:47]}  h5 {[%clk 0:02:14]} 15. O-O-O {[%clk 0:01:45]}  Bc5 {[%clk 0:02:13]} 16. Qf4 {[%clk 0:01:40]}  Bd6 {[%clk 0:01:55]} 17. Qe3 {[%clk 0:01:09]}  g6 {[%clk 0:01:36]} 18. Rde1 {[%clk 0:01:04]}  Bc5 {[%clk 0:01:30]} 19. Qh6 {[%clk 0:00:56]}  Qf6 {[%clk 0:01:21]} 20. Ng5 {[%clk 0:00:47]}  Qg7 {[%clk 0:01:20]} 21. Qxg7+ {[%clk 0:00:46]}  Kxg7 {[%clk 0:01:21]} 22. Rg2 {[%clk 0:00:34]}  Rae8 {[%clk 0:00:53]} 23. f3 {[%clk 0:00:32]}  Bc8 {[%clk 0:00:53]} 24. f4 {[%clk 0:00:17]}  Bg4 {[%clk 0:00:41]} 25. e5 {[%clk 0:00:17]}  f6 {[%clk 0:00:38]} 26. exf6+ {[%clk 0:00:17]}  Kxf6 {[%clk 0:00:35]} 27. Nde4+ {[%clk 0:00:13]}  Kg7 {[%clk 0:00:34]} 28. Rf1 {[%clk 0:00:12]}  Bb6 {[%clk 0:00:24]} 29. a3 {[%clk 0:00:11]}  Be3+ {[%clk 0:00:23]} 30. Kb1 {[%clk 0:00:11]}  Rxf4 {[%clk 0:00:21]} 31. Re1 {[%clk 0:00:11]}  Bb6 {[%clk 0:00:20]} 32. Bc4 {[%clk 0:00:08]}  Ref8 {[%clk 0:00:19]} 33. Rxg4 {[%clk 0:00:07]}  hxg4 {[%clk 0:00:18]} 34. Ne6+ {[%clk 0:00:07]}  Kh6 {[%clk 0:00:19]} 35. Nxf8 {[%clk 0:00:05]}  Rxf8 {[%clk 0:00:19]} 36. Ng5 {[%clk 0:00:05]}  Kg7 {[%clk 0:00:17]} 37. Ne6+ {[%clk 0:00:05]}  Kg8 {[%clk 0:00:16]} 38. Nxf8+ {[%clk 0:00:06]}  Kxf8 {[%clk 0:00:17]} 39. Rf1+ {[%clk 0:00:06]}  Ke7 {[%clk 0:00:16]} 40. Rf4 {[%clk 0:00:05]}  Ne5 {[%clk 0:00:14]} 41. Bd5 {[%clk 0:00:03]}  Kd6 {[%clk 0:00:15]} 42. Bxb7 {[%clk 0:00:03]}  c6 {[%clk 0:00:15]} 43. Bc8 {[%clk 0:00:03]}  g3 {[%clk 0:00:16]} 44. Bh3 {[%clk 0:00:04]}  Be3 {[%clk 0:00:15]} 45. Re4 {[%clk 0:00:04]}  Bf2 {[%clk 0:00:15]} 46. Bg2 {[%clk 0:00:04]}  Nd7 {[%clk 0:00:14]} 47. Rf4 {[%clk 0:00:04]}  Nc5 {[%clk 0:00:13]} 48. Rf6+ {[%clk 0:00:04]}  Ne6 {[%clk 0:00:14]} 49. Rxg6 {[%clk 0:00:05]}  Ke5 {[%clk 0:00:14]} 50. h5 {[%clk 0:00:06]}  Nf4 {[%clk 0:00:14]} 51. Rg8 {[%clk 0:00:06]}  Nxg2 {[%clk 0:00:15]} 52. h6 {[%clk 0:00:06]}  Nf4 {[%clk 0:00:15]} 53. h7 {[%clk 0:00:07]}  Ng6 {[%clk 0:00:14]} 54. Rxg6 {[%clk 0:00:06]}  g2 {[%clk 0:00:15]} 55. Rxg2 {[%clk 0:00:07]}  Bd4 {[%clk 0:00:15]} 56. h8=Q+ {[%clk 0:00:07]}  Kd5 {[%clk 0:00:15]} 57. Qh5+ {[%clk 0:00:07]}  Kc4 {[%clk 0:00:16]} 58. Rg4 {[%clk 0:00:08]}  c5 {[%clk 0:00:16]} 59. Qf7+ {[%clk 0:00:08]}  Kb5 {[%clk 0:00:16]} 60. Qb3+ {[%clk 0:00:09]}  Kc6 {[%clk 0:00:15]} 61. Rg6+ {[%clk 0:00:10]}  Kd7 {[%clk 0:00:14]} 62. Qf7+ {[%clk 0:00:11]} 1-0


[Site "https://www.chess.com"]

[Event "Titled Tuesday Blitz July 20 2021"]
[White "Gabrielian, Artur"]
[Black "Martins, Igor Carvalho Ribeiro"]
[WhiteFideId "4131002"]
[BlackFideId "2162962"]
[WhiteElo "2523"]
[BlackElo "2527"]
[Result "1-0"]
[Round "04"]
[TimeControl "180+1"]
[Date "2021.07.21"]
[WhiteClock "0:00:30"]
[BlackClock "0:00:32"]

1. e4 {[%clk 0:03:00]}  c5 {[%clk 0:02:58]} 2. Nc3 {[%clk 0:02:59]}  d6 {[%clk 0:02:58]} 3. d4 {[%clk 0:02:59]}  cxd4 {[%clk 0:02:57]} 4. Qxd4 {[%clk 0:02:59]}  Nf6 {[%clk 0:02:55]} 5. b3 {[%clk 0:02:58]}  Nc6 {[%clk 0:02:53]} 6. Qd2 {[%clk 0:02:58]}  g6 {[%clk 0:02:53]} 7. Bb2 {[%clk 0:02:58]}  Bg7 {[%clk 0:02:51]} 8. O-O-O {[%clk 0:02:59]}  O-O {[%clk 0:02:49]} 9. Nge2 {[%clk 0:02:54]}  b6 {[%clk 0:02:32]} 10. h4 {[%clk 0:02:47]}  Bb7 {[%clk 0:02:28]} 11. Kb1 {[%clk 0:02:46]}  Ne5 {[%clk 0:02:23]} 12. f3 {[%clk 0:02:46]}  h5 {[%clk 0:02:21]} 13. Nd5 {[%clk 0:02:35]}  Nxd5 {[%clk 0:02:14]} 14. exd5 {[%clk 0:02:35]}  a5 {[%clk 0:02:07]} 15. f4 {[%clk 0:02:28]}  Ng4 {[%clk 0:02:05]} 16. Bxg7 {[%clk 0:02:28]}  Kxg7 {[%clk 0:02:05]} 17. a4 {[%clk 0:02:24]}  Rc8 {[%clk 0:01:58]} 18. Ng3 {[%clk 0:02:15]}  Qc7 {[%clk 0:01:46]} 19. c4 {[%clk 0:02:11]}  Qc5 {[%clk 0:01:44]} 20. Ne4 {[%clk 0:02:07]}  Qe3 {[%clk 0:01:40]} 21. Qxe3 {[%clk 0:01:49]}  Nxe3 {[%clk 0:01:39]} 22. Re1 {[%clk 0:01:49]}  Nf5 {[%clk 0:01:34]} 23. Bd3 {[%clk 0:01:44]}  Rc7 {[%clk 0:01:32]} 24. Kb2 {[%clk 0:01:44]}  Bc8 {[%clk 0:01:26]} 25. Nc3 {[%clk 0:01:40]}  Ba6 {[%clk 0:01:18]} 26. Bxf5 {[%clk 0:01:39]}  gxf5 {[%clk 0:01:17]} 27. Re3 {[%clk 0:01:39]}  Kf6 {[%clk 0:01:17]} 28. Rg3 {[%clk 0:01:36]}  Rcc8 {[%clk 0:01:16]} 29. Rg5 {[%clk 0:01:36]}  Rh8 {[%clk 0:01:08]} 30. Rd1 {[%clk 0:01:33]}  Rcd8 {[%clk 0:01:04]} 31. Ne2 {[%clk 0:01:21]}  e5 {[%clk 0:01:00]} 32. fxe5+ {[%clk 0:01:11]}  dxe5 {[%clk 0:00:59]} 33. Rf1 {[%clk 0:01:11]}  Bc8 {[%clk 0:00:57]} 34. Ng3 {[%clk 0:01:10]}  Rdg8 {[%clk 0:00:53]} 35. Nxf5 {[%clk 0:01:04]}  Rxg5 {[%clk 0:00:51]} 36. hxg5+ {[%clk 0:01:04]}  Kxg5 {[%clk 0:00:51]} 37. Nd6 {[%clk 0:01:04]}  Kg4 {[%clk 0:00:43]} 38. Nxf7 {[%clk 0:00:59]}  Re8 {[%clk 0:00:40]} 39. Nd6 {[%clk 0:00:58]}  Rg8 {[%clk 0:00:37]} 40. Nxc8 {[%clk 0:00:53]}  Rxc8 {[%clk 0:00:36]} 41. Kc2 {[%clk 0:00:48]}  Kg3 {[%clk 0:00:34]} 42. Rf5 {[%clk 0:00:46]}  h4 {[%clk 0:00:33]} 43. Rxe5 {[%clk 0:00:31]}  Kxg2 {[%clk 0:00:33]} 44. Rg5+ {[%clk 0:00:31]}  Kf3 {[%clk 0:00:33]} 45. Rh5 {[%clk 0:00:31]}  Kf4 {[%clk 0:00:32]} 46. Rxh4+ {[%clk 0:00:30]} 1-0


[Site "https://www.chess.com"]

[Event "Titled Tuesday Blitz July 20 2021"]
[White "Gadimbayli, Abdulla"]
[Black "Shevelev, Dmitri"]
[WhiteFideId "13404938"]
[BlackFideId "2802627"]
[WhiteElo "2320"]
[BlackElo "2262"]
[Result "1-0"]
[Round "04"]
[TimeControl "180+1"]
[Date "2021.07.21"]
[WhiteClock "0:01:24"]
[BlackClock "0:00:06"]

1. e4 {[%clk 0:03:00]}  g6 {[%clk 0:02:58]} 2. d4 {[%clk 0:03:00]}  Bg7 {[%clk 0:02:58]} 3. Nc3 {[%clk 0:03:01]}  c6 {[%clk 0:02:58]} 4. Nf3 {[%clk 0:03:01]}  d5 {[%clk 0:02:59]} 5. h3 {[%clk 0:03:00]}  dxe4 {[%clk 0:02:59]} 6. Nxe4 {[%clk 0:03:01]}  Nf6 {[%clk 0:02:59]} 7. Nxf6+ {[%clk 0:03:01]}  exf6 {[%clk 0:03:00]} 8. Bd3 {[%clk 0:03:02]}  O-O {[%clk 0:03:01]} 9. O-O {[%clk 0:03:02]}  Be6 {[%clk 0:03:01]} 10. b3 {[%clk 0:03:02]}  Nd7 {[%clk 0:03:02]} 11. Bb2 {[%clk 0:03:02]}  Re8 {[%clk 0:03:02]} 12. c4 {[%clk 0:03:02]}  Nb6 {[%clk 0:02:59]} 13. Qc2 {[%clk 0:03:01]}  Qd7 {[%clk 0:03:00]} 14. Rad1 {[%clk 0:03:00]}  Rad8 {[%clk 0:03:00]} 15. Rfe1 {[%clk 0:02:59]}  Nc8 {[%clk 0:03:01]} 16. Nd2 {[%clk 0:02:58]}  Nd6 {[%clk 0:02:40]} 17. Ne4 {[%clk 0:02:46]}  Nxe4 {[%clk 0:02:38]} 18. Bxe4 {[%clk 0:02:47]}  f5 {[%clk 0:02:20]} 19. Bf3 {[%clk 0:02:46]}  f4 {[%clk 0:02:19]} 20. Bc3 {[%clk 0:02:37]}  Bf5 {[%clk 0:02:14]} 21. Qd2 {[%clk 0:02:37]}  g5 {[%clk 0:02:08]} 22. d5 {[%clk 0:02:34]}  Bxh3 {[%clk 0:01:35]} 23. Bxg7 {[%clk 0:02:30]}  Kxg7 {[%clk 0:01:24]} 24. gxh3 {[%clk 0:02:23]}  Qxh3 {[%clk 0:01:24]} 25. Bg2 {[%clk 0:02:22]}  Qh5 {[%clk 0:01:00]} 26. Qd4+ {[%clk 0:02:12]}  f6 {[%clk 0:00:47]} 27. f3 {[%clk 0:01:35]}  cxd5 {[%clk 0:00:25]} 28. cxd5 {[%clk 0:01:32]}  Qh4 {[%clk 0:00:26]} 29. Rxe8 {[%clk 0:01:26]}  Rxe8 {[%clk 0:00:25]} 30. Qf2 {[%clk 0:01:27]}  Qh6 {[%clk 0:00:17]} 31. d6 {[%clk 0:01:25]}  Qg6 {[%clk 0:00:15]} 32. d7 {[%clk 0:01:24]}  Rd8 {[%clk 0:00:15]} 33. Qc5 {[%clk 0:01:24]}  Qf7 {[%clk 0:00:14]} 34. Bh3 {[%clk 0:01:24]}  h5 {[%clk 0:00:12]} 35. Bf5 {[%clk 0:01:24]}  b6 {[%clk 0:00:10]} 36. Qd6 {[%clk 0:01:24]}  g4 {[%clk 0:00:09]} 37. Re1 {[%clk 0:01:24]}  gxf3 {[%clk 0:00:08]} 38. Re7 {[%clk 0:01:24]}  Rxd7 {[%clk 0:00:05]} 39. Qxd7 {[%clk 0:01:23]}  Kh6 {[%clk 0:00:04]} 40. Rxf7 {[%clk 0:01:23]}  Kg5 {[%clk 0:00:05]} 41. Qe6 {[%clk 0:01:23]}  Kh4 {[%clk 0:00:06]} 42. Qxf6+ {[%clk 0:01:23]}  Kg3 {[%clk 0:00:06]} 43. Qg5# {[%clk 0:01:24]} 1-0


[Site "https://www.chess.com"]